Cogmind - Beta 10.2 @@@ ROGUE MODE // 2021.02.04 @ 22:12:14 Player: Demise Result: Destroyed by Y-45 Defender with Beam Rifle Performance ------------- Evolutions (0) 0 Regions Visited (2) 400 Robots Destroyed (32) 160 Value Destroyed (692) 692 Prototype IDs (0) 0 Alien Tech Used (0) 0 Bonus (35) 35 TOTAL SCORE: 1287 Bonus ------- Follower Combat Kills 35 Cogmind --------- Core Integrity 0/250 Matter 187/300 Energy 83/100 System Corruption 0% Temperature Cool (9) Movement Treading (180) Ox1 Location -10/Mines Parts ------- > --- POWER (1) -------- (None) > --- PROPULSION (2) --- Light Treads Light Treads > --- UTILITY (2) ------ Large Storage Unit High-capacity Storage Unit > --- WEAPON (2) ------- Assault Rifle Light Assault Rifle > --- INVENTORY (18) --- Large Storage Unit High-capacity Battery (400) High-capacity Matter Pod (200) Signal Interpreter Medium Armor Plating Medium Armor Plating Improved Light Armor Plating Hacking Suite Light EM Pulse Cannon EMP Blaster Rocket Launcher Mining Laser Peak State ------------ > --- POWER ------------ Light Nuclear Core > --- PROPULSION ------- Light Treads Light Treads > --- UTILITY ---------- Large Storage Unit Visual Processing Unit > --- WEAPON ----------- Assault Rifle Light Assault Rifle > --- INVENTORY -------- Ion Engine Large Storage Unit Medium Armor Plating EM Pulse Gun Light Assault Rifle EMP Blaster Rocket Launcher Mining Laser [Rating: 11] Favorites ----------- Power Light Nuclear Core Engine Light Ion Engine Power Core Light Nuclear Core Propulsion Light Treads Treads Light Treads Utility Large Storage Unit Storage Large Storage Unit Processor Visual Processing Unit Weapon Light Assault Rifle Energy Gun EM Pulse Gun Ballistic Gun Light Assault Rifle Launcher Rocket Launcher Special Weapon Mining Laser Build | -11 -10 -10 ------- Run | Scr Mat Min Slots Evolved . | . . . Power . | . . . Propulsion . | . . . Utility . | . . . Weapon . | . . . Parts Attached 30 | 4 17 9 Power 6 | . 4 2 Engine 3 | . 2 1 Core 3 | . 2 1 Reactor . | . . . Propulsion 6 | 2 2 2 Treads 6 | 2 2 2 Leg . | . . . Wheel . | . . . Hover . | . . . Flight . | . . . Utility 7 | . 7 . Device . | . . . Storage 5 | . 5 . Processor 2 | . 2 . Hackware . | . . . Protection . | . . . Artifact . | . . . Weapon 11 | 2 4 5 Energy Gun 1 | 1 . . Energy Cannon . | . . . Ballistic Gun 8 | 1 3 4 Ballistic Cannon . | . . . Launcher 1 | . . 1 Special Weapon 1 | . 1 . Impact Weapon . | . . . Slashing Weapon . | . . . Piercing Weapon . | . . . Special Melee Weapon . | . . . Unidentified Prototypes . | . . . Parts Lost 7 | . . 7 Power 3 | . . 3 Propulsion 2 | . . 2 Utility . | . . . Weapon 2 | . . 2 Highest Loss Streak 3 | . . 3 Average Slot Usage (%) 93 | . 91 96 Engine 3 | . 1 6 Core 6 | . 6 5 Treads 27 | . 28 26 Storage 20 | . 16 28 Processor 6 | . 9 . Ballistic Gun 26 | . 26 26 Naked Turns . | . . . Heaviest Build 56 | 3 56 56 Greatest Support 40 | 20 40 40 Greatest Overweight (x) 2 | . 2 2 Average Overweight (x) . | . . 1 Largest Inventory Capacity 18 | 4 18 18 Average Capacity 13 | 4 11 18 Most Carried 18 | 4 18 18 Average Carried 12 | 2 10 17 Final Capacity 18 | 4 18 18 Final Carried 18 | 4 18 12 Class Distribution -------------------- 100% | Mutant Dominant Class ---------------- Mutant | -10/Materials Mutant | -10/Mines Resources | -11 -10 -10 ----------- Run | Scr Mat Min Matter Collected 979 | 253 411 315 Remotely . | . . . Salvage Created 1068 | 105 642 321 Parts 66 | 10 34 22 Haulers Intercepted 1 | . 1 . Recyclers Shooed 1 | 1 . . Parts Field Recycled . | . . . Retrieved Matter . | . . . Parts Self-Destructed . | . . . Prevented . | . . . Kills | -11 -10 -10 ------- Run | Scr Mat Min Combat Hostiles Destroyed 25 | . 12 13 Guns 21 | . 12 9 AOE 4 | . . 4 Classes Destroyed 10 | 2 5 3 Worker 2 | . . 2 Tunneler 2 | 2 . . Hauler 1 | . 1 . Recycler 2 | 1 1 . Mechanic 1 | . . 1 Operator 1 | . 1 . Watcher 3 | . 3 . Swarmer 6 | . 3 3 Grunt 14 | . 9 5 Assembled 5 | . . 5 Best Kill Streak 5 | 3 4 5 Combat Bots Only 4 | . 3 4 Max Kills in Single Turn 5 | 1 1 5 Gunslinging . | . . . Exploded 4 | . . 4 Melee . | . . . Uniques/NPCs Destroyed . | . . . Combat | -11 -10 -10 -------- Run | Scr Mat Min Damage Taken 1415 | . 323 1092 Core 258 | . 71 187 Absorbed by Shields . | . . . Core Remaining (%) 100 | 100 . . Volleys Fired 128 | 13 67 48 Largest 2 | 2 2 2 Hottest 100 | 60 100 40 Shots Fired 229 | 23 121 85 Gun 217 | 23 111 83 Cannon . | . . . Launcher 2 | . . 2 Special 10 | . 10 . Kinetic 206 | 13 110 83 Thermal 10 | . 10 . Explosive 2 | . . 2 Electromagnetic 11 | 10 1 . Robot Hit Streak 16 | 7 16 8 Robot Miss Streak 4 | 4 3 4 Penetration Max . | . . . Secondary Targets 5 | . 4 1 Max Gunslinging Chain 1 | . 1 1 Shots Hit Robots 139 | 14 74 51 Core Hits 68 | 5 33 30 Critical Hits 1 | . . 1 Critical Kills 1 | . . 1 Critical Parts Destroyed . | . . . Melee Attacks . | . . . Impact . | . . . Slashing . | . . . Piercing . | . . . Sneak Attacks . | . . . Combat Hostiles . | . . . Follow-up Attacks . | . . . Damage Inflicted 1901 | 149 837 915 Guns 1589 | 149 837 603 Cannons . | . . . Explosions 312 | . . 312 Melee . | . . . Ramming . | . . . Kinetic 1477 | 59 815 603 Thermal . | . . . Explosive 312 | . . 312 Electromagnetic 112 | 90 22 . Impact . | . . . Slashing . | . . . Piercing . | . . . Highest Corruption . | . . . Average Corruption . | . . . Corruption Purged . | . . . Overload Shots . | . . . Overflow Damage 26 | . . 26 Projectiles . | . . . Explosions 26 | . . 26 Melee . | . . . Knockbacks . | . . . Impact . | . . . Kinetic . | . . . Secondary . | . . . Self-Inflicted Damage 20 | . . 20 Shots 1 | . . 1 Rammed . | . . . Targets Rammed . | . . . Kicked . | . . . Crushed . | . . . Highest Temperature 24 | 20 16 24 Average Temperature 7 | 8 6 7 Received Heat Transfer 575 | . 132 443 Siege Activations . | . . . Robots Corrupted . | . . . Combat Hostiles . | . . . Parts Fried 1 | 1 . . Impact Corruptions . | . . . Robots Melted . | . . . Combat Hostiles . | . . . Parts Melted . | . . . Heat Transferred . | . . . Parts Sabotaged . | . . . Parts Stolen . | . . . Parts Stripped . | . . . Power Chain Reactions . | . . . Missiles Intercepted . | . . . Alert | -11 -10 -10 ------- Run | Scr Mat Min Peak Influence 376 | 15 376 251 Initial 39 | . 9 39 Average 161 | 5 200 103 Maximum Alert Level 1 | . 1 1 Low Security (%) 56 | 100 43 77 Level 1 43 | . 56 22 Level 2 . | . . . Level 3 . | . . . Level 4 . | . . . Level 5 . | . . . High Security . | . . . Max Security . | . . . Squads Dispatched 6 | . 4 2 Investigation 4 | . 3 1 Extermination . | . . . Reinforcement 1 | . 1 . Assault 1 | . . 1 Garrison . | . . . Intercept . | . . . Construction Impeded . | . . . Haulers Reinforced . | . . . Stealth | -11 -10 -10 --------- Run | Scr Mat Min Distress Signals 1 | . 1 . Communications Jammed . | . . . Distress Signals . | . . . Times Spotted 44 | . 27 17 Peak Tracking Total 6 | . 4 6 Tactical Retreats 3 | . 3 . Traps | -11 -10 -10 ------- Run | Scr Mat Min Traps Triggered 3 | . 3 . Indirectly . | . . . Trap Hack Attempts . | . . . Triggered . | . . . Disarmed . | . . . Reprogrammed . | . . . Reused . | . . . Traps Extracted . | . . . Installed . | . . . Triggered . | . . . Machines | -11 -10 -10 ---------- Run | Scr Mat Min Machines Disabled 1 | . . 1 Max in Single Turn 1 | . . 1 Machines Sabotaged . | . . . Garrisons Compromised . | . . . Overloaded Fab Kills . | . . . Fab Network Shutdowns . | . . . Hacking | -11 -10 -10 --------- Run | Scr Mat Min Machines Accessed 11 | . 10 1 Terminals 7 | . 7 . Fabricators . | . . . Repair Stations 1 | . 1 . Recycling Units 2 | . 2 . Scanalyzers . | . . . Garrison Access . | . . . Total Hacks 35 | . 34 1 Successful 17 | . 16 1 Failed 17 | . 17 . Catastrophic . | . . . Database Lockouts 1 | . 1 . Manual 30 | . 30 . Terminals 25 | . 25 . Fabricators . | . . . Repair Stations 2 | . 2 . Recycling Units 7 | . 7 . Scanalyzers . | . . . Garrison Access . | . . . Terminal Hacks 7 | . 6 1 Record 1 | . 1 . Part Schematic 2 | . 2 . Robot Analysis 2 | . 2 . Open Door 1 | . . 1 Terminal Index 1 | . 1 . Fabricator Hacks . | . . . Repair Station Hacks 2 | . 2 . Scan Component 1 | . 1 . Repair 1 | . 1 . Recycling Unit Hacks 1 | . 1 . Retrieve Components 1 | . 1 . Scanalyzer . | . . . Garrison Access Hacks . | . . . Unauthorized Hacks 7 | . 7 . Terminals 5 | . 5 . Botnet 4 | . 4 . Operators 1 | . 1 . Fabricators . | . . . Repair Stations . | . . . Recycling Units 2 | . 2 . Mask 2 | . 2 . Scanalyzers . | . . . Garrison Access . | . . . Data Cores Recovered . | . . . Used . | . . . Hacking Detections 9 | . 9 . Full Trace Events 1 | . 1 . Feedback Events . | . . . Feedback Blocked . | . . . Robot Schematics Acquired . | . . . Robots Built . | . . . Matter . | . . . Time . | . . . Total Robot Build Rating . | . . . Part Schematics Acquired 2 | . 2 . Parts Built . | . . . Matter . | . . . Time . | . . . Total Part Build Rating . | . . . Parts Repaired 1 | . 1 . Time 26 | . 26 . Parts Recycled . | . . . Recycled Matter . | . . . Retrieved Matter . | . . . Retrieved Components 2 | . 2 . Parts Scanalyzed . | . . . Part Schematics Acquired . | . . . Parts Damaged . | . . . Bothacking | -11 -10 -10 ------------ Run | Scr Mat Min Used RIF Installer . | . . . Robots Hacked . | . . . Non-combat . | . . . Combat . | . . . Robot Hacks Applied . | . . . Relay Couplers Released . | . . . Robots Rewired . | . . . Allies Hacked . | . . . Hacks Repelled . | . . . Allies | -11 -10 -10 -------- Run | Scr Mat Min Total Allies 1 | . . 1 Largest Group 1 | . . 1 Highest-Rated Group 31 | . . 31 Highest-Rated Ally 31 | . . 31 Total Orders . | . . . Ally Attacks 6 | . . 6 Total Damage 84 | . . 84 Kills 1 | . . 1 Allies Corrupted . | . . . Allies Melted 1 | . . 1 Intel | -11 -10 -10 ------- Run | Scr Mat Min Robot Analysis Total 2 | . 2 . Derelict Logs Recovered . | . . . Drone Launches . | . . . Drone Recoveries . | . . . Exploration | -11 -10 -10 ------------- Run | Scr Mat Min Turns Passed 2155 | 61 1354 740 Spaces Moved 1215 | 33 849 333 Core 427 | 32 395 . Treads 788 | 1 454 333 Legs . | . . . Wheels . | . . . Hover . | . . . Flight . | . . . Fastest Speed 50 | 50 50 180 Average Speed 129 | 53 112 181 Slowest Speed 200 | 160 180 200 Overloaded Moves . | . . . Propulsion Burnouts . | . . . Robots Hopped . | . . . Cave-ins Triggered . | . . . Exploration Rate (%) 56 | 3 95 71 Regions Visited 2 Branch Regions 1 Pre-discovered Areas . | . . . Known Exits Taken 1 | . 1 . Unknown Exits Taken 1 | 1 . . Scrap Searched 1 | . . 1 Spaces Dug 5 | . 5 . Terrain Destroyed 25 | . 10 15 Melee . | . . . Projectile 10 | . 10 . AOE 15 | . . 15 Terrain Rammed . | . . . Walls Destroyed . | . . . Machines Disabled . | . . . Actions | -11 -10 -10 --------- Run | Scr Mat Min Total 1570 | 53 1122 395 Wait 140 | . 139 1 Move 1213 | 32 848 333 Hop . | . . . Pick Up 41 | 4 35 2 Fast Attach 10 | 4 6 . Attach 10 | . 4 6 Detach 3 | . 3 . Swap 10 | . 7 3 Drop 15 | . 13 2 Fire 128 | 13 67 48 Melee . | . . . Ram . | . . . Kick . | . . . Crush . | . . . Escape Stasis . | . . . Rewire . | . . . Trap . | . . . Miscellaneous . | . . . Route ------- -11/Scrapyard -10/Materials (discovered 5 exits: *Mat x3 / *Min x2) -10/Mines (discovered 1 exit: [*Exi]) History --------- Turn | Location | Event 12 | -11/Scrapyard | Discovered new exit (range 15) 62 | -11/Scrapyard | Entered Materials 155 | -10/Materials | Discovered new exit (range 13) 160 | -10/Materials | Identified exit to Materials 316 | -10/Materials | Build established: Mutant 333 | -10/Materials | Discovered new exit (range 6) 344 | -10/Materials | Identified exit to Mines 350 | -10/Materials | Discovered exit to Mines (range 16) 612 | -10/Materials | Discovered exit to Materials (range 18) 729 | -10/Materials | Repaired Lgt. Treads 1059 | -10/Materials | Central database locked down 1161 | -10/Materials | Discovered exit to Materials (range 16) 1416 | -10/Materials | Entered Mines 1417 | -10/Mines | Met a Derelict testing a Signal Generator 1779 | -10/Mines | Met a Derelict shopkeep closing up shop 1955 | -10/Mines | Assembled infested the area 1968 | -10/Mines | Core integrity fell below 50% 2012 | -10/Mines | Core integrity fell below 20% 2045 | -10/Mines | Lost 3 parts (1p1n1w) 2121 | -10/Mines | Discovered new exit (range 8) 2156 | -10/Mines | Destroyed by Y-45 Defender with Beam Rifle Last Messages --------------- 02014_ as-68999 destroyed. 02014_ as-40966 destroyed. 02014_ Assault Rifle destroyed. 02014_ Destroyed Assault Rifle. 02016_ K-01 Serf collects debris. 02074_ Searching scrap... 02074_ Found Lrg. Matter Pod. 02074_ Found ECM Suite. 02074_ Found Tractor Beam. 02074_ Found 11 Matter. 02075_ Acquired 11 matter. 02120_ T-07 Excavator is excavating. 02121_ EXIT=FOUND 02124_ T-07 Excavator is excavating. 02132_ Lgt. Treads destroyed. 02133_ T-07 Excavator is excavating. 02136_ Lgt. Assault Rifle destroyed. 02137_ T-07 Excavator is excavating. 02145_ Lgt. Nuclear Core destroyed. 02146_ T-07 Excavator is excavating. Map ----- +----------------------------------------------------+ | | | | | | | | | | | | | | | | | | | | | ???????????????????????????????? | | ???????????????????????????????? | | ???????????????????????????????? | | ???????????????????????????????? | | ???????????????????????????????? | | ???????????????????????????????? | | ???????????????????????????????? | | ???????????????????????????????? | | ???????????????????????????????? | | ???######??????????????????????? | | ??##"!!"#??????????????????????? | | ??#""|!""??????????????????????? | | ??#Y $???????????????????????? | | ???# ???????????????????????? | | ??###/Y######??????????????????? | | ??# @ #??????????????????? | | ??# #??????????????????? | | ??# #??????????????????? | | ??# #??????????????????? | | ??# ##########?????????? | | ??# #?????????? | | ??# ####### #?????????? | | ??# #?????# #?????????? | | ??### ###########!!#?????????? | | ????# < ?# #?????????? | | ????# t #?# ####### !######????? | | ????# # #?????# #????? | | ????###### ##?????# #????? | | ?????????##???????###### #????# | | ???????????????????????# #???## | | ???????????????????????# #???# | | ?????????????????####### #???# | | ?????????????????# #??## | | ?????????????????# ##### #?## | | ???????????????????????# #?# | | ?????????????????????### #?# | | ????????????????????## #?# | | ????????????????????# #?## | | ????????????????????# ##??## | | ????????????????????## ###### | +----------------------------------------------------+ Best States ------------- Heat Dissipation 25 Energy Generation 14 Energy Capacity 250 Matter Stores 300 Matter Capacity 300 Sight Range 18 Terrain Scan Density 10 Evasion (%) 50 Recoil Reduction 2 Item Schematics ----------------- Hcp. Storage Unit | -10/Materials | Hacked Med. Storage Unit | -10/Materials | Hacked Robot Schematics ------------------ None Fabricated ------------ Nothing Alien Tech Used ----------------- None Achievements -------------- None Challenges ------------ None Game ------ Seed RemoteSegregatorTrap Manual? 0 Play Time 00:20:35 Cumulative 275.8 hours Start 2021.02.04 @ 21:54:08 End 2021.02.04 @ 22:12:14 Sessions 1 Manual Loads 0 Difficulty Rogue Special Mode None Game No. 240 Rogue 240 Adventurer 0 Explorer 0 Win Type - Total 1 Types 0/0/0/1/0/0/0/0/0 Lore% 64 Gallery% 74 Achievement% 57 Wizard Run 0 Options --------- ASCII 0 Keyboard 1 Movement Numpad Keybinds 0 Fullscreen 1 Font 12/Terminus Map View 83x54 Tactical HUD 1 Map Filters NONE Filters NONE Steam 1 RUN: 944ba263-44d5-4344-be84-f1d26dd848bb